Workbook

Sheet 南明区2023年公开招聘事业单位工作人员笔试、面试及总成绩
A1: 南明区2023年公开招聘事业单位工作人员笔试、面试及总成绩
A2: 序号 | B2: 姓名 | C2: 准考证号 | D2: 报考单位 | E2: 报考岗位 | F2: 职业能力倾向测验成绩 | G2: 综合应用能力成绩 | H2: 笔试卷面总成绩 | I2: 笔试成绩（百分制 | J2: 笔试折算成绩（笔试百分制成绩*0.6） | K2: 面试成绩 | L2: 面试折算成绩（面试成绩*0.4） | M2: 总成绩
A3: 1 | B3: 陈衍焙 | C3: 1152960200527 | D3: 201032001南明区人民政府政务服务中心 | E3: 20103200101管理岗位 | F3: 115 | G3: 96 | H3: 211 | I3: =H3/3 -> 70.33 | J3: =I3*0.6 -> 42.20 | K3: 82.80 | L3: =K3*0.4 -> 33.12 | M3: =J3+L3 -> 75.32
A4: 2 | B4: 冉芬 | C4: 1152960102019 | D4: 201032001南明区人民政府政务服务中心 | E4: 20103200101管理岗位 | F4: 104 | G4: 94 | H4: 198 | I4: =H4/3 -> 66.00 | J4: =I4*0.6 -> 39.60 | K4: 77.20 | L4: =K4*0.4 -> 30.88 | M4: =J4+L4 -> 70.48
A5: 3 | B5: 付炜晋 | C5: 1152960102317 | D5: 201032001南明区人民政府政务服务中心 | E5: 20103200101管理岗位 | F5: 102 | G5: 92 | H5: 194 | I5: 64.67 | J5: 38.80 | K5: 80.80 | L5: 32.32 | M5: 71.12
A6: 4 | B6: 周诗宇 | C6: 1152960500518 | D6: 201032002南明区消防工作服务中心 | E6: 20103200201管理岗位 | F6: 116 | G6: 106 | H6: 222 | I6: 74.00 | J6: 44.40 | K6: 缺考
A7: 5 | B7: 骆小童 | C7: 1152960201913 | D7: 201032002南明区消防工作服务中心 | E7: 20103200201管理岗位 | F7: 111.5 | G7: 106.5 | H7: 218 | I7: 72.67 | J7: 43.60 | K7: 78.60 | L7: 31.44 | M7: 75.04
A8: 6 | B8: 樊良丽 | C8: 1152960300106 | D8: 201032002南明区消防工作服务中心 | E8: 20103200201管理岗位 | F8: 105.5 | G8: 99.5 | H8: 205 | I8: 68.33 | J8: 41.00 | K8: 81.80 | L8: 32.72 | M8: 73.72
A9: 7 | B9: 赵紫翎 | C9: 1152960200408 | D9: 201032002南明区消防工作服务中心 | E9: 20103200201管理岗位 | F9: 103 | G9: 98 | H9: 201 | I9: 67.00 | J9: 40.20 | K9: 79.00 | L9: 31.60 | M9: 71.8
A10: 8 | B10: 许曼 | C10: 1152960200804 | D10: 201032002南明区消防工作服务中心 | E10: 20103200201管理岗位 | F10: 97 | G10: 102.5 | H10: 199.5 | I10: 66.50 | J10: 39.90 | K10: 78.00 | L10: 31.20 | M10: 71.1
A11: 9 | B11: 罗江 | C11: 1152960301122 | D11: 201032002南明区消防工作服务中心 | E11: 20103200201管理岗位 | F11: 112.5 | G11: 85.5 | H11: 198 | I11: 66.00 | J11: 39.60 | K11: 82.60 | L11: 33.04 | M11: 72.64
A12: 10 | B12: 李浪子 | C12: 1152960302029 | D12: 201032003中共贵阳市南明区委党校 | E12: 20103200301专业技术岗位 | F12: 106.5 | G12: 99.5 | H12: 206 | I12: 68.67 | J12: 41.20 | K12: 84.80 | L12: 33.92 | M12: 75.12
A13: 11 | B13: 李雅聪 | C13: 1152960600509 | D13: 201032003中共贵阳市南明区委党校 | E13: 20103200301专业技术岗位 | F13: 114 | G13: 91 | H13: 205 | I13: 68.33 | J13: 41.00 | K13: 82.20 | L13: 32.88 | M13: 73.88
A14: 12 | B14: 张春梅 | C14: 1152960101008 | D14: 201032003中共贵阳市南明区委党校 | E14: 20103200301专业技术岗位 | F14: 109.5 | G14: 94.5 | H14: 204 | I14: 68.00 | J14: 40.80 | K14: 85.00 | L14: 34.00 | M14: 74.8
A15: 13 | B15: 王柔 | C15: 1152960800122 | D15: 201032004贵阳市南明区公共法律服务中心 | E15: 20103200401管理岗位 | F15: 89.5 | G15: 109 | H15: 198.5 | I15: 66.17 | J15: 39.70 | K15: 83.40 | L15: 33.36 | M15: 73.06
A16: 14 | B16: 扈献斌 | C16: 1152960202026 | D16: 201032004贵阳市南明区公共法律服务中心 | E16: 20103200401管理岗位 | F16: 111 | G16: 85.5 | H16: 196.5 | I16: 65.50 | J16: 39.30 | K16: 缺考
A17: 15 | B17: 徐冷 | C17: 1152960601821 | D17: 201032004贵阳市南明区公共法律服务中心 | E17: 20103200401管理岗位 | F17: 96 | G17: 98 | H17: 194 | I17: 64.67 | J17: 38.80 | K17: 81.40 | L17: 32.56 | M17: 71.36
A18: 16 | B18: 徐姝颖 | C18: 1152960201121 | D18: 201032005南明区财政国库集中支付中心 | E18: 20103200501管理岗位 | F18: 104.5 | G18: 110 | H18: 214.5 | I18: 71.50 | J18: 42.90 | K18: 80.00 | L18: 32.00 | M18: 74.9
A19: 17 | B19: 艾然 | C19: 1152960100201 | D19: 201032005南明区财政国库集中支付中心 | E19: 20103200501管理岗位 | F19: 116.5 | G19: 96 | H19: 212.5 | I19: 70.83 | J19: 42.50 | K19: 86.20 | L19: 34.48 | M19: 76.98
A20: 18 | B20: 吴琼 | C20: 1152960701727 | D20: 201032005南明区财政国库集中支付中心 | E20: 20103200501管理岗位 | F20: 113 | G20: 99 | H20: 212 | I20: 70.67 | J20: 42.40 | K20: 79.80 | L20: 31.92 | M20: 74.32
A21: 19 | B21: 曾祥义 | C21: 1152960802115 | D21: 201032005南明区财政国库集中支付中心 | E21: 20103200501管理岗位 | F21: 101.5 | G21: 106.5 | H21: 208 | I21: 69.33 | J21: 41.60 | K21: 73.40 | L21: 29.36 | M21: 70.96
A22: 20 | B22: 胡显志 | C22: 1152960601915 | D22: 201032005南明区财政国库集中支付中心 | E22: 20103200501管理岗位 | F22: 102 | G22: 105.5 | H22: 207.5 | I22: 69.17 | J22: 41.50 | K22: 83.40 | L22: 33.36 | M22: 74.86
A23: 21 | B23: 罗振 | C23: 1152960701919 | D23: 201032005南明区财政国库集中支付中心 | E23: 20103200501管理岗位 | F23: 113 | G23: 94 | H23: 207 | I23: 69.00 | J23: 41.40 | K23: 82.00 | L23: 32.80 | M23: 74.2
A24: 22 | B24: 李雨璐 | C24: 1152960601210 | D24: 201032006南明区疾病预防控制中心 | E24: 20103200601管理岗位 | F24: 105.5 | G24: 93 | H24: 198.5 | I24: 66.17 | J24: 39.70 | K24: 79.20 | L24: 31.68 | M24: 71.38
A25: 23 | B25: 韩鹏 | C25: 1152960800929 | D25: 201032006南明区疾病预防控制中心 | E25: 20103200601管理岗位 | F25: 106.5 | G25: 89.5 | H25: 196 | I25: 65.33 | J25: 39.20 | K25: 82.40 | L25: 32.96 | M25: 72.16
A26: 24 | B26: 罗丽华 | C26: 1152960701629 | D26: 201032006南明区疾病预防控制中心 | E26: 20103200601管理岗位 | F26: 98 | G26: 97.5 | H26: 195.5 | I26: 65.17 | J26: 39.10 | K26: 79.00 | L26: 31.60 | M26: 70.7
A27: 25 | B27: 杨鑫 | C27: 1152960700525 | D27: 201032006南明区疾病预防控制中心 | E27: 20103200602专业技术岗位 | F27: 106 | G27: 111 | H27: 217 | I27: 72.33 | J27: 43.40 | K27: 75.60 | L27: 30.24 | M27: 73.64
A28: 26 | B28: 田巍 | C28: 1152960601726 | D28: 201032006南明区疾病预防控制中心 | E28: 20103200602专业技术岗位 | F28: 104.5 | G28: 95.5 | H28: 200 | I28: 66.67 | J28: 40.00 | K28: 81.60 | L28: 32.64 | M28: 72.64
A29: 27 | B29: 杨成林 | C29: 1152960602207 | D29: 201032006南明区疾病预防控制中心 | E29: 20103200602专业技术岗位 | F29: 113.5 | G29: 81.5 | H29: 195 | I29: 65.00 | J29: 39.00 | K29: 81.20 | L29: 32.48 | M29: 71.48
A30: 28 | B30: 邓琨瀚 | C30: 1152960501110 | D30: 201032006南明区疾病预防控制中心 | E30: 20103200603专业技术岗位 | F30: 110 | G30: 91 | H30: 201 | I30: 67.00 | J30: 40.20 | K30: 78.40 | L30: 31.36 | M30: 71.56
A31: 29 | B31: 杨荟竹 | C31: 1152960201326 | D31: 201032006南明区疾病预防控制中心 | E31: 20103200603专业技术岗位 | F31: 81.5 | G31: 110 | H31: 191.5 | I31: 63.83 | J31: 38.30 | K31: 79.40 | L31: 31.76 | M31: 70.06
A32: 30 | B32: 蔡妮 | C32: 1152960401725 | D32: 201032006南明区疾病预防控制中心 | E32: 20103200603专业技术岗位 | F32: 102.5 | G32: 88.5 | H32: 191 | I32: 63.67 | J32: 38.20 | K32: 81.40 | L32: 32.56 | M32: 70.76
A33: 31 | B33: 王亚岚 | C33: 1152960301612 | D33: 201032006南明区疾病预防控制中心 | E33: 20103200604专业技术岗位 | F33: 104 | G33: 104 | H33: 208 | I33: 69.33 | J33: 41.60 | K33: 79.20 | L33: 31.68 | M33: 73.28
A34: 32 | B34: 方欣 | C34: 1152960200525 | D34: 201032006南明区疾病预防控制中心 | E34: 20103200604专业技术岗位 | F34: 94.5 | G34: 102.5 | H34: 197 | I34: 65.67 | J34: 39.40 | K34: 76.80 | L34: 30.72 | M34: 70.12
A35: 33 | B35: 李荧 | C35: 1152960302224 | D35: 201032006南明区疾病预防控制中心 | E35: 20103200604专业技术岗位 | F35: 92 | G35: 97.5 | H35: 189.5 | I35: 63.17 | J35: 37.90 | K35: 缺考
A36: 34 | B36: 李玲 | C36: 1152960300228 | D36: 201032006南明区疾病预防控制中心 | E36: 20103200604专业技术岗位 | F36: 101.5 | G36: 87.5 | H36: 189 | I36: 63.00 | J36: 37.80 | K36: 65.00 | L36: 26.00 | M36: 63.8
A37: 35 | B37: 付白花 | C37: 1152960300421 | D37: 201032006南明区疾病预防控制中心 | E37: 20103200604专业技术岗位 | F37: 91.5 | G37: 93.5 | H37: 185 | I37: 61.67 | J37: 37.00 | K37: 79.80 | L37: 31.92 | M37: 68.92
A38: 36 | B38: 赵涛 | C38: 1152960601130 | D38: 201032006南明区疾病预防控制中心 | E38: 20103200604专业技术岗位 | F38: 89.5 | G38: 94 | H38: 183.5 | I38: 61.17 | J38: 36.70 | K38: 75.20 | L38: 30.08 | M38: 66.78
A39: 37 | B39: 李祖蓉 | C39: 1152960402110 | D39: 201032006南明区疾病预防控制中心 | E39: 20103200604专业技术岗位 | F39: 91.5 | G39: 91.5 | H39: 183 | I39: 61.00 | J39: 36.60 | K39: 74.60 | L39: 29.84 | M39: 66.44
A40: 38 | B40: 许力评 | C40: 1152960102709 | D40: 201032006南明区疾病预防控制中心 | E40: 20103200604专业技术岗位 | F40: 82 | G40: 98 | H40: 180 | I40: 60.00 | J40: 36.00 | K40: 64.00 | L40: 25.60 | M40: 61.6
A41: 39 | B41: 马宇 | C41: 1152960501702 | D41: 201032006南明区疾病预防控制中心 | E41: 20103200604专业技术岗位 | F41: 93.5 | G41: 86 | H41: 179.5 | I41: 59.83 | J41: 35.90 | K41: 75.80 | L41: 30.32 | M41: 66.22
A42: 40 | B42: 何雅馨 | C42: 1152960302217 | D42: 201032006南明区疾病预防控制中心 | E42: 20103200604专业技术岗位 | F42: 90.5 | G42: 88.5 | H42: 179 | I42: 59.67 | J42: 35.80 | K42: 69.20 | L42: 27.68 | M42: 63.48
A43: 41 | B43: 仇小莉 | C43: 1152960700623 | D43: 201032006南明区疾病预防控制中心 | E43: 20103200604专业技术岗位 | F43: 93 | G43: 84.5 | H43: 177.5 | I43: 59.17 | J43: 35.50 | K43: 67.40 | L43: 26.96 | M43: 62.46
A44: 42 | B44: 宋家悦 | C44: 1152960402130 | D44: 201032006南明区疾病预防控制中心 | E44: 20103200604专业技术岗位 | F44: 86 | G44: 91 | H44: 177 | I44: 59.00 | J44: 35.40 | K44: 76.40 | L44: 30.56 | M44: 65.96
A45: 43 | B45: 唐丁依 | C45: 1152960301914 | D45: 201032006南明区疾病预防控制中心 | E45: 20103200605专业技术岗位 | F45: 92 | G45: 104 | H45: 196 | I45: 65.33 | J45: 39.20 | K45: 75.40 | L45: 30.16 | M45: 69.36
A46: 44 | B46: 陈本奇 | C46: 1152960801902 | D46: 201032006南明区疾病预防控制中心 | E46: 20103200605专业技术岗位 | F46: 80 | G46: 90 | H46: 170 | I46: 56.67 | J46: 34.00 | K46: 71.80 | L46: 28.72 | M46: 62.72
A47: 45 | B47: 冯潇 | C47: 1152960300902 | D47: 201032006南明区疾病预防控制中心 | E47: 20103200605专业技术岗位 | F47: 77.5 | G47: 86 | H47: 163.5 | I47: 54.50 | J47: 32.70 | K47: 缺考
A48: 46 | B48: 杨海香 | C48: 1152960102703 | D48: 201032007南明区小碧乡卫生院 | E48: 20103200701专业技术岗位 | F48: 65 | G48: 86 | H48: 151 | I48: 50.33 | J48: 30.20 | K48: 82.60 | L48: 33.04 | M48: 63.24
A49: 47 | B49: 肖宇 | C49: 1152960401904 | D49: 201032007南明区小碧乡卫生院 | E49: 20103200701专业技术岗位 | F49: 74 | G49: 76 | H49: 150 | I49: 50.00 | J49: 30.00 | K49: 73.40 | L49: 29.36 | M49: 59.36
A50: 48 | B50: 王明娟 | C50: 1152960401106 | D50: 201032007南明区小碧乡卫生院 | E50: 20103200701专业技术岗位 | F50: 66.5 | G50: 79 | H50: 145.5 | I50: 48.50 | J50: 29.10 | K50: 75.20 | L50: 30.08 | M50: 59.18
A51: 49 | B51: 胡飞 | C51: 1152960400618 | D51: 201032007南明区小碧乡卫生院 | E51: 20103200702专业技术岗位 | F51: 72 | G51: 83.5 | H51: 155.5 | I51: 51.83 | J51: 31.10 | K51: 76.40 | L51: 30.56 | M51: 61.66
A52: 50 | B52: 谢莉 | C52: 1152960702102 | D52: 201032007南明区小碧乡卫生院 | E52: 20103200702专业技术岗位 | F52: 53 | G52: 84 | H52: 137 | I52: 45.67 | J52: 27.40 | K52: 76.40 | L52: 30.56 | M52: 57.96
A53: 51 | B53: 王丹 | C53: 1152960801705 | D53: 201032007南明区小碧乡卫生院 | E53: 20103200702专业技术岗位 | F53: 45 | G53: 85.5 | H53: 130.5 | I53: 43.50 | J53: 26.10 | K53: 缺考
A54: 52 | B54: 姜芳 | C54: 1152960202015 | D54: 201032007南明区小碧乡卫生院 | E54: 20103200703专业技术岗位 | F54: 70.5 | G54: 82 | H54: 152.5 | I54: 50.83 | J54: 30.50 | K54: 77.60 | L54: 31.04 | M54: 61.54
A55: 53 | B55: 张筑萍 | C55: 1152960101218 | D55: 201032007南明区小碧乡卫生院 | E55: 20103200703专业技术岗位 | F55: 65 | G55: 65 | H55: 130 | I55: 43.33 | J55: 26.00 | K55: 80.60 | L55: 32.24 | M55: 58.24
A56: 54 | B56: 王荣茂 | C56: 1152960100821 | D56: 201032007南明区小碧乡卫生院 | E56: 20103200704专业技术岗位 | F56: 70 | G56: 46.5 | H56: 116.5 | I56: 38.83 | J56: 23.30 | K56: 69.00 | L56: 27.60 | M56: 50.9
A57: 55 | B57: 董沙沙 | C57: 1152960501522 | D57: 201032007南明区小碧乡卫生院 | E57: 20103200706专业技术岗位 | F57: 79 | G57: 84.5 | H57: 163.5 | I57: 54.50 | J57: 32.70 | K57: 79.80 | L57: 31.92 | M57: 64.62
A58: 56 | B58: 王慧腾 | C58: 1152960401011 | D58: 201032007南明区小碧乡卫生院 | E58: 20103200706专业技术岗位 | F58: 73.5 | G58: 90 | H58: 163.5 | I58: 54.50 | J58: 32.70 | K58: 79.20 | L58: 31.68 | M58: 64.38
A59: 57 | B59: 李兴会 | C59: 1152960800307 | D59: 201032007南明区小碧乡卫生院 | E59: 20103200706专业技术岗位 | F59: 77.5 | G59: 81.5 | H59: 159 | I59: 53.00 | J59: 31.80 | K59: 72.00 | L59: 28.80 | M59: 60.6
A60: 58 | B60: 李杏杏 | C60: 1152960300901 | D60: 201032008南明区社会经济调查中心 | E60: 20103200801专业技术岗位 | F60: 114 | G60: 96 | H60: 210 | I60: 70.00 | J60: 42.00 | K60: 75.40 | L60: 30.16 | M60: 72.16
A61: 59 | B61: 杨文雪 | C61: 1152960502011 | D61: 201032008南明区社会经济调查中心 | E61: 20103200801专业技术岗位 | F61: 103.5 | G61: 105 | H61: 208.5 | I61: 69.50 | J61: 41.70 | K61: 82.80 | L61: 33.12 | M61: 74.82
A62: 60 | B62: 龚婷 | C62: 1152960701710 | D62: 201032008南明区社会经济调查中心 | E62: 20103200801专业技术岗位 | F62: 100.5 | G62: 106 | H62: 206.5 | I62: 68.83 | J62: 41.30 | K62: 77.60 | L62: 31.04 | M62: 72.34
A63: 61 | B63: 杨喜雅 | C63: 1152960602021 | D63: 201032009贵阳市南明区融媒体中心 | E63: 20103200901管理岗位 | F63: 113 | G63: 98.5 | H63: 211.5 | I63: 70.50 | J63: 42.30 | K63: 77.60 | L63: 31.04 | M63: 73.34
A64: 62 | B64: 何平 | C64: 1152960301823 | D64: 201032009贵阳市南明区融媒体中心 | E64: 20103200901管理岗位 | F64: 122.5 | G64: 88 | H64: 210.5 | I64: 70.17 | J64: 42.10 | K64: 73.00 | L64: 29.20 | M64: 71.3
A65: 63 | B65: 龙昀宜 | C65: 1152960400118 | D65: 201032009贵阳市南明区融媒体中心 | E65: 20103200901管理岗位 | F65: 101.5 | G65: 103 | H65: 204.5 | I65: 68.17 | J65: 40.90 | K65: 78.40 | L65: 31.36 | M65: 72.26
A66: 64 | B66: 张力 | C66: 1152960401203 | D66: 201032009贵阳市南明区融媒体中心 | E66: 20103200902专业技术岗位 | F66: 91 | G66: 111 | H66: 202 | I66: 67.33 | J66: 40.40 | K66: 73.60 | L66: 29.44 | M66: 69.84
A67: 65 | B67: 余爽 | C67: 1152960600121 | D67: 201032009贵阳市南明区融媒体中心 | E67: 20103200902专业技术岗位 | F67: 85.5 | G67: 104 | H67: 189.5 | I67: 63.17 | J67: 37.90 | K67: 79.20 | L67: 31.68 | M67: 69.58
A68: 66 | B68: 唐树银 | C68: 1152960602313 | D68: 201032009贵阳市南明区融媒体中心 | E68: 20103200902专业技术岗位 | F68: 89 | G68: 98 | H68: 187 | I68: =H68/3 -> 62.33 | J68: =I68*0.6 -> 37.40 | K68: 75.60 | L68: =K68*0.4 -> 30.24 | M68: =J68+L68 -> 67.64
A69: 67 | B69: 徐吉欧 | C69: 1152960702124 | D69: 201032009贵阳市南明区融媒体中心 | E69: 20103200902专业技术岗位 | F69: 94.5 | G69: 90.5 | H69: 185 | I69: 61.67 | J69: 37.00 | K69: 77.20 | L69: 30.88 | M69: 67.88
A70: 68 | B70: 冯德稳 | C70: 1152960801702 | D70: 201032009贵阳市南明区融媒体中心 | E70: 20103200902专业技术岗位 | F70: 101.5 | G70: 82.5 | H70: 184 | I70: 61.33 | J70: 36.80 | K70: 74.80 | L70: 29.92 | M70: 66.72
A71: 69 | B71: 龙艳 | C71: 1152960801810 | D71: 201032009贵阳市南明区融媒体中心 | E71: 20103200902专业技术岗位 | F71: 87.5 | G71: 96.5 | H71: 184 | I71: 61.33 | J71: 36.80 | K71: 77.20 | L71: 30.88 | M71: 67.68
A72: 70 | B72: 罗国梅 | C72: 1152960601324 | D72: 201032009贵阳市南明区融媒体中心 | E72: 20103200902专业技术岗位 | F72: 92.5 | G72: 91 | H72: 183.5 | I72: 61.17 | J72: 36.70 | K72: 缺考
A73: 71 | B73: 周谊 | C73: 1152960501103 | D73: 201032009贵阳市南明区融媒体中心 | E73: 20103200902专业技术岗位 | F73: 82 | G73: 99 | H73: 181 | I73: 60.33 | J73: 36.20 | K73: 81.00 | L73: 32.40 | M73: 68.6
A74: 72 | B74: 董婧珣 | C74: 1152960601629 | D74: 201032009贵阳市南明区融媒体中心 | E74: 20103200902专业技术岗位 | F74: 81.5 | G74: 98.5 | H74: 180 | I74: 60.00 | J74: 36.00 | K74: 77.80 | L74: 31.12 | M74: 67.12
A75: 73 | B75: 唐天蓝 | C75: 1152960402101 | D75: 201032010贵阳市南明区园区建设服务中心 | E75: 20103201001管理岗位 | F75: 124 | G75: 100.5 | H75: 224.5 | I75: 74.83 | J75: 44.90 | K75: 78.40 | L75: 31.36 | M75: 76.26
A76: 74 | B76: 任欢欢 | C76: 1152960500501 | D76: 201032010贵阳市南明区园区建设服务中心 | E76: 20103201001管理岗位 | F76: 96 | G76: 111.5 | H76: 207.5 | I76: 69.17 | J76: 41.50 | K76: 60.20 | L76: 24.08 | M76: 65.58
A77: 75 | B77: 牟林森 | C77: 1152960600514 | D77: 201032010贵阳市南明区园区建设服务中心 | E77: 20103201001管理岗位 | F77: 106.5 | G77: 100.5 | H77: 207 | I77: 69.00 | J77: 41.40 | K77: 72.20 | L77: 28.88 | M77: 70.28
A78: 76 | B78: 周军捷 | C78: 1152960500807 | D78: 201032011贵阳市南明区城市更新事务中心 | E78: 20103201101管理岗位 | F78: 105 | G78: 113 | H78: 218 | I78: 72.67 | J78: 43.60 | K78: 78.00 | L78: 31.20 | M78: 74.8
A79: 77 | B79: 李沛然 | C79: 1152960700918 | D79: 201032011贵阳市南明区城市更新事务中心 | E79: 20103201101管理岗位 | F79: 121 | G79: 86 | H79: 207 | I79: 69.00 | J79: 41.40 | K79: 74.60 | L79: 29.84 | M79: 71.24
A80: 78 | B80: 杨正伟 | C80: 1152960702519 | D80: 201032011贵阳市南明区城市更新事务中心 | E80: 20103201101管理岗位 | F80: 95 | G80: 98 | H80: 193 | I80: 64.33 | J80: 38.60 | K80: 缺考
A81: 79 | B81: 聂开剑 | C81: 1152960400927 | D81: 201032011贵阳市南明区城市更新事务中心 | E81: 20103201102专业技术岗位 | F81: 117 | G81: 102.5 | H81: 219.5 | I81: 73.17 | J81: 43.90 | K81: 78.20 | L81: 31.28 | M81: 75.18
A82: 80 | B82: 王迅劼 | C82: 1152960201505 | D82: 201032011贵阳市南明区城市更新事务中心 | E82: 20103201102专业技术岗位 | F82: 99.5 | G82: 106 | H82: 205.5 | I82: 68.50 | J82: 41.10 | K82: 77.80 | L82: 31.12 | M82: 72.22
A83: 81 | B83: 杨春 | C83: 1152960701911 | D83: 201032011贵阳市南明区城市更新事务中心 | E83: 20103201102专业技术岗位 | F83: 98.5 | G83: 105 | H83: 203.5 | I83: 67.83 | J83: 40.70 | K83: 缺考
A84: 82 | B84: 龙俊洁 | C84: 1152960101607 | D84: 201032011贵阳市南明区城市更新事务中心 | E84: 20103201103专业技术岗位 | F84: 102.5 | G84: 99.5 | H84: 202 | I84: 67.33 | J84: 40.40 | K84: 80.00 | L84: 32.00 | M84: 72.4
A85: 83 | B85: 吴瑾 | C85: 1152960402313 | D85: 201032011贵阳市南明区城市更新事务中心 | E85: 20103201103专业技术岗位 | F85: 92 | G85: 104 | H85: 196 | I85: 65.33 | J85: 39.20 | K85: 77.80 | L85: 31.12 | M85: 70.32
A86: 84 | B86: 宋杰 | C86: 1152960801901 | D86: 201032011贵阳市南明区城市更新事务中心 | E86: 20103201103专业技术岗位 | F86: 103.5 | G86: 91.5 | H86: 195 | I86: 65.00 | J86: 39.00 | K86: 79.60 | L86: 31.84 | M86: 70.84
A87: 85 | B87: 王涛 | C87: 1152960501917 | D87: 201032012贵阳市南明区投资促进局 | E87: 20103201201管理岗位 | F87: 103 | G87: 109 | H87: 212 | I87: 70.67 | J87: 42.40 | K87: 77.20 | L87: 30.88 | M87: 73.28
A88: 86 | B88: 葛梦贤 | C88: 1152960201527 | D88: 201032012贵阳市南明区投资促进局 | E88: 20103201201管理岗位 | F88: 94.5 | G88: 113 | H88: 207.5 | I88: 69.17 | J88: 41.50 | K88: 79.40 | L88: 31.76 | M88: 73.26
A89: 87 | B89: 陈肖 | C89: 1152960300428 | D89: 201032012贵阳市南明区投资促进局 | E89: 20103201201管理岗位 | F89: 103 | G89: 98.5 | H89: 201.5 | I89: 67.17 | J89: 40.30 | K89: 80.80 | L89: 32.32 | M89: 72.62
A90: 88 | B90: 徐皓一 | C90: 1152960800629 | D90: 201032013贵阳市南明区房屋征收服务中心 | E90: 20103201301管理岗位 | F90: 108.5 | G90: 85 | H90: 193.5 | I90: 64.50 | J90: 38.70 | K90: 缺考
A91: 89 | B91: 刘苏扬 | C91: 1152960800718 | D91: 201032013贵阳市南明区房屋征收服务中心 | E91: 20103201301管理岗位 | F91: 91.5 | G91: 98.5 | H91: 190 | I91: 63.33 | J91: 38.00 | K91: 81.80 | L91: 32.72 | M91: 70.72
A92: 90 | B92: 李梦园 | C92: 1152960101419 | D92: 201032013贵阳市南明区房屋征收服务中心 | E92: 20103201301管理岗位 | F92: 88 | G92: 102 | H92: 190 | I92: 63.33 | J92: 38.00 | K92: 80.00 | L92: 32.00 | M92: 70
A93: 91 | B93: 路育 | C93: 1152960801813 | D93: 201032013贵阳市南明区房屋征收服务中心 | E93: 20103201302专业技术岗位 | F93: 111 | G93: 96.5 | H93: 207.5 | I93: 69.17 | J93: 41.50 | K93: 82.80 | L93: 33.12 | M93: 74.62
A94: 92 | B94: 敖霞 | C94: 1152960600217 | D94: 201032013贵阳市南明区房屋征收服务中心 | E94: 20103201302专业技术岗位 | F94: 98.5 | G94: 99 | H94: 197.5 | I94: 65.83 | J94: 39.50 | K94: 85.20 | L94: 34.08 | M94: 73.58
A95: 93 | B95: 姚柳青 | C95: 1152960200301 | D95: 201032013贵阳市南明区房屋征收服务中心 | E95: 20103201302专业技术岗位 | F95: 102.5 | G95: 93.5 | H95: 196 | I95: 65.33 | J95: 39.20 | K95: 72.80 | L95: 29.12 | M95: 68.32
A96: 94 | B96: 刘丽娟 | C96: 1152960600619 | D96: 201032014贵阳市南明区后巢乡财政所 | E96: 20103201401管理岗位 | F96: 87 | G96: 104.5 | H96: 191.5 | I96: 63.83 | J96: 38.30 | K96: 79.80 | L96: 31.92 | M96: 70.22
A97: 95 | B97: 杨文徽 | C97: 1152960401215 | D97: 201032014贵阳市南明区后巢乡财政所 | E97: 20103201401管理岗位 | F97: 95.5 | G97: 92 | H97: 187.5 | I97: 62.50 | J97: 37.50 | K97: 77.60 | L97: 31.04 | M97: 68.54
A98: 96 | B98: 方颖 | C98: 1152960601307 | D98: 201032014贵阳市南明区后巢乡财政所 | E98: 20103201401管理岗位 | F98: 89.5 | G98: 95 | H98: 184.5 | I98: 61.50 | J98: 36.90 | K98: 80.40 | L98: 32.16 | M98: 69.06
A99: 97 | B99: 魏玉蓉 | C99: 1152960300122 | D99: 201032015贵阳市南明区后巢乡应急工作服务中心 | E99: 20103201501管理岗位 | F99: 59 | G99: 86 | H99: 145 | I99: 48.33 | J99: 29.00 | K99: 81.60 | L99: 32.64 | M99: 61.64
A100: 98 | B100: 许斌 | C100: 1152960400406 | D100: 201032015贵阳市南明区后巢乡应急工作服务中心 | E100: 20103201501管理岗位 | F100: 54 | G100: 57.5 | H100: 111.5 | I100: 37.17 | J100: 22.30 | K100: 73.80 | L100: 29.52 | M100: 51.82
A101: 99 | B101: 刘玲丽 | C101: 1152960801222 | D101: 201032016贵阳市南明区后巢乡综治服务中心 | E101: 20103201601管理岗位 | F101: 120.5 | G101: 88.5 | H101: 209 | I101: 69.67 | J101: 41.80 | K101: 77.20 | L101: 30.88 | M101: 72.68
A102: 100 | B102: 郭浩 | C102: 1152960101028 | D102: 201032016贵阳市南明区后巢乡综治服务中心 | E102: 20103201601管理岗位 | F102: 101 | G102: 102 | H102: 203 | I102: 67.67 | J102: 40.60 | K102: 80.60 | L102: 32.24 | M102: 72.84
A103: 101 | B103: 李敏 | C103: 1152960700106 | D103: 201032016贵阳市南明区后巢乡综治服务中心 | E103: 20103201601管理岗位 | F103: 107 | G103: 95.5 | H103: 202.5 | I103: 67.50 | J103: 40.50 | K103: 74.80 | L103: 29.92 | M103: 70.42
A104: 102 | B104: 徐乾 | C104: 1152960101302 | D104: 201032017贵阳市南明区云关乡应急工作服务中心 | E104: 20103201701管理岗位 | F104: 101.5 | G104: 110 | H104: 211.5 | I104: 70.50 | J104: 42.30 | K104: 82.40 | L104: 32.96 | M104: 75.26
A105: 103 | B105: 张议文 | C105: 1152960800618 | D105: 201032017贵阳市南明区云关乡应急工作服务中心 | E105: 20103201701管理岗位 | F105: 105 | G105: 93.5 | H105: 198.5 | I105: 66.17 | J105: 39.70 | K105: 82.00 | L105: 32.80 | M105: 72.5
A106: 104 | B106: 罗湛博 | C106: 1152960800529 | D106: 201032017贵阳市南明区云关乡应急工作服务中心 | E106: 20103201701管理岗位 | F106: 104 | G106: 93.5 | H106: 197.5 | I106: 65.83 | J106: 39.50 | K106: 83.40 | L106: 33.36 | M106: 72.86
A107: 105 | B107: 杨杰 | C107: 1152960701621 | D107: 201032018贵阳市南明区永乐乡党务政务综合服务中心 | E107: 20103201801专业技术岗位 | F107: 115 | G107: 105 | H107: 220 | I107: 73.33 | J107: 44.00 | K107: 84.20 | L107: 33.68 | M107: 77.68
A108: 106 | B108: 陈烜 | C108: 1152960701713 | D108: 201032018贵阳市南明区永乐乡党务政务综合服务中心 | E108: 20103201801专业技术岗位 | F108: 102 | G108: 90.5 | H108: 192.5 | I108: 64.17 | J108: 38.50 | K108: 72.40 | L108: 28.96 | M108: 67.46
A109: 107 | B109: 周涛 | C109: 1152960201927 | D109: 201032018贵阳市南明区永乐乡党务政务综合服务中心 | E109: 20103201801专业技术岗位 | F109: 106 | G109: 83.5 | H109: 189.5 | I109: 63.17 | J109: 37.90 | K109: 74.80 | L109: 29.92 | M109: 67.82
A110: 108 | B110: 何昀璞 | C110: 1152960601901 | D110: 201032019贵阳市南明区永乐乡乡村振兴工作服务中心 | E110: 20103201901专业技术岗位 | F110: 94.5 | G110: 94 | H110: 188.5 | I110: 62.83 | J110: 37.70 | K110: 80.40 | L110: 32.16 | M110: 69.86
A111: 109 | B111: 陈琳 | C111: 1152960201017 | D111: 201032019贵阳市南明区永乐乡乡村振兴工作服务中心 | E111: 20103201901专业技术岗位 | F111: 92.5 | G111: 91.5 | H111: 184 | I111: 61.33 | J111: 36.80 | K111: 79.60 | L111: 31.84 | M111: 68.64
A112: 110 | B112: 甘青青 | C112: 1152960701215 | D112: 201032019贵阳市南明区永乐乡乡村振兴工作服务中心 | E112: 20103201901专业技术岗位 | F112: 83 | G112: 99.5 | H112: 182.5 | I112: 60.83 | J112: 36.50 | K112: 79.00 | L112: 31.60 | M112: 68.1
A113: 111 | B113: 樊一铭 | C113: 1152960200122 | D113: 201032021南明区永乐乡村镇建设服务中心 | E113: 20103202101专业技术岗位 | F113: 104.5 | G113: 85.5 | H113: 190 | I113: 63.33 | J113: 38.00 | K113: 81.00 | L113: 32.40 | M113: 70.4
A114: 112 | B114: 李显惟 | C114: 1152960601718 | D114: 201032021南明区永乐乡村镇建设服务中心 | E114: 20103202101专业技术岗位 | F114: 99.5 | G114: 90 | H114: 189.5 | I114: 63.17 | J114: 37.90 | K114: 80.40 | L114: 32.16 | M114: 70.06
A115: 113 | B115: 李倩 | C115: 1152960601926 | D115: 201032021南明区永乐乡村镇建设服务中心 | E115: 20103202101专业技术岗位 | F115: 92 | G115: 95 | H115: 187 | I115: 62.33 | J115: 37.40 | K115: 85.00 | L115: 34.00 | M115: 71.4
A116: 114 | B116: 吴迪 | C116: 1152960802101 | D116: 201032022贵阳市南明区新华路街道退役军人服务站 | E116: 20103202201管理岗位 | F116: 108 | G116: 99 | H116: 207 | I116: 69.00 | J116: 41.40 | K116: 82.20 | L116: 32.88 | M116: 74.28
A117: 115 | B117: 李思烨 | C117: 1152960102521 | D117: 201032022贵阳市南明区新华路街道退役军人服务站 | E117: 20103202201管理岗位 | F117: 110.5 | G117: 93.5 | H117: 204 | I117: 68.00 | J117: 40.80 | K117: 78.80 | L117: 31.52 | M117: 72.32
A118: 116 | B118: 姚慕镕 | C118: 1152960401803 | D118: 201032022贵阳市南明区新华路街道退役军人服务站 | E118: 20103202201管理岗位 | F118: 91.5 | G118: 103.5 | H118: 195 | I118: 65.00 | J118: 39.00 | K118: 75.20 | L118: 30.08 | M118: 69.08
A119: 117 | B119: 肖波 | C119: 1152960800526 | D119: 201032023贵阳市南明区新华路街道应急工作服务中心 | E119: 20103202301管理岗位 | F119: 113.5 | G119: 95 | H119: 208.5 | I119: 69.50 | J119: 41.70 | K119: 76.00 | L119: 30.40 | M119: 72.1
A120: 118 | B120: 郑州鸿 | C120: 1152960401807 | D120: 201032023贵阳市南明区新华路街道应急工作服务中心 | E120: 20103202301管理岗位 | F120: 104 | G120: 104 | H120: 208 | I120: 69.33 | J120: 41.60 | K120: 82.80 | L120: 33.12 | M120: 74.72
A121: 119 | B121: 赵锦华 | C121: 1152960200115 | D121: 201032023贵阳市南明区新华路街道应急工作服务中心 | E121: 20103202301管理岗位 | F121: 97.5 | G121: 104.5 | H121: 202 | I121: 67.33 | J121: 40.40 | K121: 82.40 | L121: 32.96 | M121: 73.36
A122: 120 | B122: 李雪 | C122: 1152960101209 | D122: 201032024贵阳市南明区遵义路街道党务政务综合服务中心 | E122: 20103202401管理岗位 | F122: 108.5 | G122: 92.5 | H122: 201 | I122: 67.00 | J122: 40.20 | K122: 79.20 | L122: 31.68 | M122: 71.88
A123: 121 | B123: 李杰明 | C123: 1152960200614 | D123: 201032024贵阳市南明区遵义路街道党务政务综合服务中心 | E123: 20103202401管理岗位 | F123: 107.5 | G123: 91 | H123: 198.5 | I123: 66.17 | J123: 39.70 | K123: 80.60 | L123: 32.24 | M123: 71.94
A124: 122 | B124: 唐仁丽 | C124: 1152960402108 | D124: 201032024贵阳市南明区遵义路街道党务政务综合服务中心 | E124: 20103202401管理岗位 | F124: 107.5 | G124: 88.5 | H124: 196 | I124: 65.33 | J124: 39.20 | K124: 77.40 | L124: 30.96 | M124: 70.16
A125: 123 | B125: 李生威 | C125: 1152960200530 | D125: 201032025贵阳市南明区遵义路街道应急工作服务中心 | E125: 20103202501管理岗位 | F125: 103 | G125: 106 | H125: 209 | I125: 69.67 | J125: 41.80 | K125: 84.40 | L125: 33.76 | M125: 75.56
A126: 124 | B126: 孙茹羽 | C126: 1152960201429 | D126: 201032025贵阳市南明区遵义路街道应急工作服务中心 | E126: 20103202501管理岗位 | F126: 95.5 | G126: 103 | H126: 198.5 | I126: 66.17 | J126: 39.70 | K126: 80.60 | L126: 32.24 | M126: 71.94
A127: 125 | B127: 艾诗杰 | C127: 1152960301803 | D127: 201032025贵阳市南明区遵义路街道应急工作服务中心 | E127: 20103202501管理岗位 | F127: 99.5 | G127: 96.5 | H127: 196 | I127: 65.33 | J127: 39.20 | K127: 64.20 | L127: 25.68 | M127: 64.88
A128: 126 | B128: 罗辉 | C128: 1152960501219 | D128: 201032026贵阳市南明区中华南路街道应急工作服务中心 | E128: 20103202601管理岗位 | F128: 111.5 | G128: 98 | H128: 209.5 | I128: 69.83 | J128: 41.90 | K128: 缺考
A129: 127 | B129: 郭念 | C129: 1152960601226 | D129: 201032026贵阳市南明区中华南路街道应急工作服务中心 | E129: 20103202601管理岗位 | F129: 111 | G129: 92.5 | H129: 203.5 | I129: 67.83 | J129: 40.70 | K129: 76.60 | L129: 30.64 | M129: 71.34
A130: 128 | B130: 江顺兵 | C130: 1152960801909 | D130: 201032026贵阳市南明区中华南路街道应急工作服务中心 | E130: 20103202601管理岗位 | F130: 98 | G130: 99 | H130: 197 | I130: 65.67 | J130: 39.40 | K130: 80.20 | L130: 32.08 | M130: 71.48
A131: 129 | B131: 谌玥雯 | C131: 1152960700206 | D131: 201032026贵阳市南明区中华南路街道应急工作服务中心 | E131: 20103202602管理岗位 | F131: 104 | G131: 99 | H131: 203 | I131: 67.67 | J131: 40.60 | K131: 80.20 | L131: 32.08 | M131: 72.68
A132: 130 | B132: 罗倩 | C132: 1152960600201 | D132: 201032026贵阳市南明区中华南路街道应急工作服务中心 | E132: 20103202602管理岗位 | F132: 104.5 | G132: 96.5 | H132: 201 | I132: =H132/3 -> 67.00 | J132: =I132*0.6 -> 40.20 | K132: 80.80 | L132: =K132*0.4 -> 32.32 | M132: =J132+L132 -> 72.52
A133: 131 | B133: 季建敏 | C133: 1152960402225 | D133: 201032026贵阳市南明区中华南路街道应急工作服务中心 | E133: 20103202602管理岗位 | F133: 90.5 | G133: 109.5 | H133: 200 | I133: 66.67 | J133: 40.00 | K133: 81.80 | L133: 32.72 | M133: 72.72
A134: 132 | B134: 王泽宇 | C134: 1152960501405 | D134: 201032027贵阳市南明区中华南路街道综治服务中心 | E134: 20103202701管理岗位 | F134: 120.5 | G134: 98.5 | H134: 219 | I134: 73.00 | J134: 43.80 | K134: 80.60 | L134: 32.24 | M134: 76.04
A135: 133 | B135: 袁春远 | C135: 1152960401210 | D135: 201032027贵阳市南明区中华南路街道综治服务中心 | E135: 20103202701管理岗位 | F135: 110 | G135: 100.5 | H135: 210.5 | I135: 70.17 | J135: 42.10 | K135: 78.40 | L135: 31.36 | M135: 73.46
A136: 134 | B136: 刘绸 | C136: 1152960400202 | D136: 201032027贵阳市南明区中华南路街道综治服务中心 | E136: 20103202701管理岗位 | F136: 105.5 | G136: 102.5 | H136: 208 | I136: 69.33 | J136: 41.60 | K136: 81.00 | L136: 32.40 | M136: 74
A137: 135 | B137: 王帅 | C137: 1152960301814 | D137: 201032028贵阳市南明区油榨街道应急工作服务中心 | E137: 20103202801管理岗位 | F137: 95 | G137: 108.5 | H137: 203.5 | I137: 67.83 | J137: 40.70 | K137: 79.20 | L137: 31.68 | M137: 72.38
A138: 136 | B138: 舒恩庆 | C138: 1152960601214 | D138: 201032028贵阳市南明区油榨街道应急工作服务中心 | E138: 20103202801管理岗位 | F138: 103 | G138: 96.5 | H138: 199.5 | I138: 66.50 | J138: 39.90 | K138: 82.00 | L138: 32.80 | M138: 72.7
A139: 137 | B139: 杨楚河 | C139: 1152960400810 | D139: 201032028贵阳市南明区油榨街道应急工作服务中心 | E139: 20103202801管理岗位 | F139: 105 | G139: 88 | H139: 193 | I139: 64.33 | J139: 38.60 | K139: 78.00 | L139: 31.20 | M139: 69.8
A140: 138 | B140: 肖家英 | C140: 1152960602303 | D140: 201032029贵阳市南明区油榨街道综治服务中心 | E140: 20103202901管理岗位 | F140: 92 | G140: 113 | H140: 205 | I140: 68.33 | J140: 41.00 | K140: 80.80 | L140: 32.32 | M140: 73.32
A141: 139 | B141: 陈曦 | C141: 1152960401910 | D141: 201032029贵阳市南明区油榨街道综治服务中心 | E141: 20103202901管理岗位 | F141: 102.5 | G141: 96 | H141: 198.5 | I141: 66.17 | J141: 39.70 | K141: 78.40 | L141: 31.36 | M141: 71.06
A142: 140 | B142: 聂培敏 | C142: 1152960702202 | D142: 201032029贵阳市南明区油榨街道综治服务中心 | E142: 20103202901管理岗位 | F142: 104 | G142: 94 | H142: 198 | I142: 66.00 | J142: 39.60 | K142: 80.40 | L142: 32.16 | M142: 71.76
A143: 141 | B143: 叶远航 | C143: 1152960401905 | D143: 201032031贵阳市南明区河滨街道应急工作服务中心 | E143: 20103203101管理岗位 | F143: 98.5 | G143: 94.5 | H143: 193 | I143: 64.33 | J143: 38.60 | K143: 80.00 | L143: 32.00 | M143: 70.6
A144: 142 | B144: 吴娟 | C144: 1152960102110 | D144: 201032031贵阳市南明区河滨街道应急工作服务中心 | E144: 20103203101管理岗位 | F144: 93 | G144: 96 | H144: 189 | I144: 63.00 | J144: 37.80 | K144: 78.00 | L144: 31.20 | M144: 69
A145: 143 | B145: 邹海瑶 | C145: 1152960602225 | D145: 201032031贵阳市南明区河滨街道应急工作服务中心 | E145: 20103203101管理岗位 | F145: 85.5 | G145: 102 | H145: 187.5 | I145: 62.50 | J145: 37.50 | K145: 77.20 | L145: 30.88 | M145: 68.38
A146: 144 | B146: 黄霆 | C146: 1152960101923 | D146: 201032032贵阳市南明区兴关路街道应急工作服务中心 | E146: 20103203201管理岗位 | F146: 107.5 | G146: 100 | H146: 207.5 | I146: 69.17 | J146: 41.50 | K146: 83.80 | L146: 33.52 | M146: 75.02
A147: 145 | B147: 高歌韵函 | C147: 1152960101216 | D147: 201032032贵阳市南明区兴关路街道应急工作服务中心 | E147: 20103203201管理岗位 | F147: 105 | G147: 98.5 | H147: 203.5 | I147: 67.83 | J147: 40.70 | K147: 80.00 | L147: 32.00 | M147: 72.7
A148: 146 | B148: 何佳鑫 | C148: 1152960301125 | D148: 201032032贵阳市南明区兴关路街道应急工作服务中心 | E148: 20103203201管理岗位 | F148: 107 | G148: 95 | H148: 202 | I148: 67.33 | J148: 40.40 | K148: 83.40 | L148: 33.36 | M148: 73.76
A149: 147 | B149: 陈相宇 | C149: 1152960401230 | D149: 201032032贵阳市南明区兴关路街道应急工作服务中心 | E149: 20103203201管理岗位 | F149: 104 | G149: 96 | H149: 200 | I149: 66.67 | J149: 40.00 | K149: 84.20 | L149: 33.68 | M149: 73.68
A150: 148 | B150: 史家伟 | C150: 1152960702824 | D150: 201032032贵阳市南明区兴关路街道应急工作服务中心 | E150: 20103203201管理岗位 | F150: 105 | G150: 92.5 | H150: 197.5 | I150: 65.83 | J150: 39.50 | K150: 81.60 | L150: 32.64 | M150: 72.14
A151: 149 | B151: 汪永军 | C151: 1152960502101 | D151: 201032032贵阳市南明区兴关路街道应急工作服务中心 | E151: 20103203201管理岗位 | F151: 111.5 | G151: 85.5 | H151: 197 | I151: 65.67 | J151: 39.40 | K151: 76.00 | L151: 30.40 | M151: 69.8
A152: 150 | B152: 李颖 | C152: 1152960400619 | D152: 201032033贵阳市南明区二戈街道综治服务中心 | E152: 20103203301管理岗位 | F152: 114 | G152: 109 | H152: 223 | I152: 74.33 | J152: 44.60 | K152: 84.40 | L152: 33.76 | M152: 78.36
A153: 151 | B153: 张文康 | C153: 1152960701607 | D153: 201032033贵阳市南明区二戈街道综治服务中心 | E153: 20103203301管理岗位 | F153: 113 | G153: 102 | H153: 215 | I153: 71.67 | J153: 43.00 | K153: 81.00 | L153: 32.40 | M153: 75.4
A154: 152 | B154: 宋思思 | C154: 1152960300824 | D154: 201032033贵阳市南明区二戈街道综治服务中心 | E154: 20103203301管理岗位 | F154: 96 | G154: 99.5 | H154: 195.5 | I154: 65.17 | J154: 39.10 | K154: 79.00 | L154: 31.60 | M154: 70.7
A155: 153 | B155: 张晶 | C155: 1152960501511 | D155: 201032034贵阳市南明区二戈街道应急工作服务中心 | E155: 20103203401管理岗位 | F155: 98 | G155: 94.5 | H155: 192.5 | I155: 64.17 | J155: 38.50 | K155: 78.40 | L155: 31.36 | M155: 69.86
A156: 154 | B156: 谢亚芳 | C156: 1152960201616 | D156: 201032034贵阳市南明区二戈街道应急工作服务中心 | E156: 20103203401管理岗位 | F156: 92.5 | G156: 98.5 | H156: 191 | I156: 63.67 | J156: 38.20 | K156: 80.40 | L156: 32.16 | M156: 70.36
A157: 155 | B157: 陈远云 | C157: 1152960100101 | D157: 201032034贵阳市南明区二戈街道应急工作服务中心 | E157: 20103203401管理岗位 | F157: 81 | G157: 108.5 | H157: 189.5 | I157: 63.17 | J157: 37.90 | K157: 84.80 | L157: 33.92 | M157: 71.82
A158: 156 | B158: 梁杨 | C158: 1152960300503 | D158: 201032035贵阳市南明区太慈桥街道党务政务综合服务中心 | E158: 20103203501管理岗位 | F158: 94 | G158: 104.5 | H158: 198.5 | I158: 66.17 | J158: 39.70 | K158: 80.40 | L158: 32.16 | M158: 71.86
A159: 157 | B159: 胡昌权 | C159: 1152960400917 | D159: 201032035贵阳市南明区太慈桥街道党务政务综合服务中心 | E159: 20103203501管理岗位 | F159: 97 | G159: 98 | H159: 195 | I159: 65.00 | J159: 39.00 | K159: 82.60 | L159: 33.04 | M159: 72.04
A160: 158 | B160: 高婷 | C160: 1152960101723 | D160: 201032035贵阳市南明区太慈桥街道党务政务综合服务中心 | E160: 20103203501管理岗位 | F160: 104.5 | G160: 86.5 | H160: 191 | I160: 63.67 | J160: 38.20 | K160: 79.20 | L160: 31.68 | M160: 69.88
A161: 159 | B161: 刘玲 | C161: 1152960301407 | D161: 201032036贵阳市南明区太慈桥街道应急工作服务中心 | E161: 20103203601管理岗位 | F161: 104.5 | G161: 104 | H161: 208.5 | I161: 69.50 | J161: 41.70 | K161: 83.80 | L161: 33.52 | M161: 75.22
A162: 160 | B162: 张恒瑞 | C162: 1152960200214 | D162: 201032036贵阳市南明区太慈桥街道应急工作服务中心 | E162: 20103203601管理岗位 | F162: 83.5 | G162: 104.5 | H162: 188 | I162: 62.67 | J162: 37.60 | K162: 71.80 | L162: 28.72 | M162: 66.32
A163: 161 | B163: 徐成海 | C163: 1152960401427 | D163: 201032036贵阳市南明区太慈桥街道应急工作服务中心 | E163: 20103203601管理岗位 | F163: 92 | G163: 92 | H163: 184 | I163: 61.33 | J163: 36.80 | K163: 缺考
A164: 162 | B164: 彭清泉 | C164: 1152960200215 | D164: 201032037贵阳市南明区西湖路街道应急工作服务中心 | E164: 20103203701管理岗位 | F164: 86 | G164: 86.5 | H164: 172.5 | I164: 57.50 | J164: 34.50 | K164: 86.40 | L164: 34.56 | M164: 69.06
A165: 163 | B165: 罗凯 | C165: 1152960601502 | D165: 201032037贵阳市南明区西湖路街道应急工作服务中心 | E165: 20103203701管理岗位 | F165: 85 | G165: 84.5 | H165: 169.5 | I165: 56.50 | J165: 33.90 | K165: 84.00 | L165: 33.60 | M165: 67.5
A166: 164 | B166: 张望 | C166: 1152960800209 | D166: 201032037贵阳市南明区西湖路街道应急工作服务中心 | E166: 20103203701管理岗位 | F166: 80 | G166: 84.5 | H166: 164.5 | I166: 54.83 | J166: 32.90 | K166: 19.00 | L166: 7.60 | M166: 40.5
A167: 165 | B167: 彭颖 | C167: 1152960102319 | D167: 201032037贵阳市南明区西湖路街道应急工作服务中心 | E167: 20103203702管理岗位 | F167: 71.5 | G167: 89 | H167: 160.5 | I167: 53.50 | J167: 32.10 | K167: 76.00 | L167: 30.40 | M167: 62.5
A168: 166 | B168: 肖顺 | C168: 1152960400210 | D168: 201032037贵阳市南明区西湖路街道应急工作服务中心 | E168: 20103203702管理岗位 | F168: 75 | G168: 80 | H168: 155 | I168: 51.67 | J168: 31.00 | K168: 78.80 | L168: 31.52 | M168: 62.52
A169: 167 | B169: 谭涯星 | C169: 1152960101429 | D169: 201032037贵阳市南明区西湖路街道应急工作服务中心 | E169: 20103203702管理岗位 | F169: 76.5 | G169: 77 | H169: 153.5 | I169: 51.17 | J169: 30.70 | K169: 79.60 | L169: 31.84 | M169: 62.54
A170: 168 | B170: 任诗琪 | C170: 1152960600710 | D170: 201032038贵阳市南明区水口寺街道退役军人服务站 | E170: 20103203801管理岗位 | F170: 94.5 | G170: 103 | H170: 197.5 | I170: 65.83 | J170: 39.50 | K170: 81.20 | L170: 32.48 | M170: 71.98
A171: 169 | B171: 赵珏雅 | C171: 1152960401621 | D171: 201032038贵阳市南明区水口寺街道退役军人服务站 | E171: 20103203801管理岗位 | F171: 96.5 | G171: 93 | H171: 189.5 | I171: 63.17 | J171: 37.90 | K171: 83.60 | L171: 33.44 | M171: 71.34
A172: 170 | B172: 苏斌 | C172: 1152960401903 | D172: 201032038贵阳市南明区水口寺街道退役军人服务站 | E172: 20103203801管理岗位 | F172: 102.5 | G172: 85.5 | H172: 188 | I172: 62.67 | J172: 37.60 | K172: 78.80 | L172: 31.52 | M172: 69.12
A173: 171 | B173: 邹正培 | C173: 1152960101825 | D173: 201032039贵阳市南明区水口寺街道应急工作服务中心 | E173: 20103203901管理岗位 | F173: 118.5 | G173: 92.5 | H173: 211 | I173: 70.33 | J173: 42.20 | K173: 81.40 | L173: 32.56 | M173: 74.76
A174: 172 | B174: 常涔铖 | C174: 1152960301116 | D174: 201032039贵阳市南明区水口寺街道应急工作服务中心 | E174: 20103203901管理岗位 | F174: 111 | G174: 97.5 | H174: 208.5 | I174: 69.50 | J174: 41.70 | K174: 84.80 | L174: 33.92 | M174: 75.62
A175: 173 | B175: 袁嘉霖 | C175: 1152960801307 | D175: 201032039贵阳市南明区水口寺街道应急工作服务中心 | E175: 20103203901管理岗位 | F175: 110.5 | G175: 94.5 | H175: 205 | I175: 68.33 | J175: 41.00 | K175: 85.60 | L175: 34.24 | M175: 75.24
A176: 174 | B176: 梁成 | C176: 1152960700524 | D176: 201032039贵阳市南明区水口寺街道应急工作服务中心 | E176: 20103203901管理岗位 | F176: 103 | G176: 101 | H176: 204 | I176: 68.00 | J176: 40.80 | K176: 76.00 | L176: 30.40 | M176: 71.2
A177: 175 | B177: 罗四维 | C177: 1152960401325 | D177: 201032039贵阳市南明区水口寺街道应急工作服务中心 | E177: 20103203901管理岗位 | F177: 116.5 | G177: 86 | H177: 202.5 | I177: 67.50 | J177: 40.50 | K177: 81.00 | L177: 32.40 | M177: 72.9
A178: 176 | B178: 欧来勇 | C178: 1152960601602 | D178: 201032039贵阳市南明区水口寺街道应急工作服务中心 | E178: 20103203901管理岗位 | F178: 104.5 | G178: 95.5 | H178: 200 | I178: 66.67 | J178: 40.00 | K178: 80.40 | L178: 32.16 | M178: 72.16
A179: 177 | B179: 周宴民 | C179: 1152960801406 | D179: 201032039贵阳市南明区水口寺街道应急工作服务中心 | E179: 20103203901管理岗位 | F179: 102 | G179: 98 | H179: 200 | I179: 66.67 | J179: 40.00 | K179: 84.60 | L179: 33.84 | M179: 73.84
A180: 178 | B180: 黎颖 | C180: 1152960201501 | D180: 201032040贵阳市南明区中曹司街道应急工作服务中心 | E180: 20103204001管理岗位 | F180: 102.5 | G180: 105.5 | H180: 208 | I180: 69.33 | J180: 41.60 | K180: 80.00 | L180: 32.00 | M180: 73.6
A181: 179 | B181: 马晓盼 | C181: 1152960301530 | D181: 201032040贵阳市南明区中曹司街道应急工作服务中心 | E181: 20103204001管理岗位 | F181: 105 | G181: 95.5 | H181: 200.5 | I181: 66.83 | J181: 40.10 | K181: 82.80 | L181: 33.12 | M181: 73.22
A182: 180 | B182: 廖世琪 | C182: 1152960801204 | D182: 201032040贵阳市南明区中曹司街道应急工作服务中心 | E182: 20103204001管理岗位 | F182: 105.5 | G182: 87.5 | H182: 193 | I182: 64.33 | J182: 38.60 | K182: 85.60 | L182: 34.24 | M182: 72.84
A183: 181 | B183: 冯涛 | C183: 1152960700707 | D183: 201032041贵阳市南明区湘雅街道应急工作服务中心 | E183: 20103204101管理岗位 | F183: 102.5 | G183: 95.5 | H183: 198 | I183: 66.00 | J183: 39.60 | K183: 83.20 | L183: 33.28 | M183: 72.88
A184: 182 | B184: 石佳乐 | C184: 1152960500906 | D184: 201032041贵阳市南明区湘雅街道应急工作服务中心 | E184: 20103204101管理岗位 | F184: 107.5 | G184: 90 | H184: 197.5 | I184: 65.83 | J184: 39.50 | K184: 75.40 | L184: 30.16 | M184: 69.66
A185: 183 | B185: 余启涛 | C185: 1152960301023 | D185: 201032041贵阳市南明区湘雅街道应急工作服务中心 | E185: 20103204101管理岗位 | F185: 103.5 | G185: 93.5 | H185: 197 | I185: 65.67 | J185: 39.40 | K185: 77.20 | L185: 30.88 | M185: 70.28
A186: 184 | B186: 杨叶婷 | C186: 1152960702328 | D186: 201032042贵阳市南明区沙冲路街道党务政务综合服务中心 | E186: 20103204201管理岗位 | F186: 86.5 | G186: 101.5 | H186: 188 | I186: 62.67 | J186: 37.60 | K186: 缺考
A187: 185 | B187: 高晟涵 | C187: 1152960401009 | D187: 201032042贵阳市南明区沙冲路街道党务政务综合服务中心 | E187: 20103204201管理岗位 | F187: 92 | G187: 94.5 | H187: 186.5 | I187: 62.17 | J187: 37.30 | K187: 82.80 | L187: 33.12 | M187: 70.42
A188: 186 | B188: 曾诗棋 | C188: 1152960501412 | D188: 201032042贵阳市南明区沙冲路街道党务政务综合服务中心 | E188: 20103204201管理岗位 | F188: 99 | G188: 85 | H188: 184 | I188: 61.33 | J188: 36.80 | K188: 87.00 | L188: 34.80 | M188: 71.6
A189: 187 | B189: 王合跃 | C189: 1152960701422 | D189: 201032043贵阳市南明区沙冲路街道优化营商环境服务中心 | E189: 20103204301管理岗位 | F189: 114 | G189: 89.5 | H189: 203.5 | I189: 67.83 | J189: 40.70 | K189: 缺考
A190: 188 | B190: 董潇 | C190: 1152960101509 | D190: 201032043贵阳市南明区沙冲路街道优化营商环境服务中心 | E190: 20103204301管理岗位 | F190: 103 | G190: 97 | H190: 200 | I190: 66.67 | J190: 40.00 | K190: 75.40 | L190: 30.16 | M190: 70.16
A191: 189 | B191: 赵理雪 | C191: 1152960202011 | D191: 201032043贵阳市南明区沙冲路街道优化营商环境服务中心 | E191: 20103204301管理岗位 | F191: 108.5 | G191: 91.5 | H191: 200 | I191: 66.67 | J191: 40.00 | K191: 80.20 | L191: 32.08 | M191: 72.08
A192: 190 | B192: 陈欢 | C192: 1152960101016 | D192: 201032044贵阳市南明区沙冲路街道综治服务中心 | E192: 20103204401管理岗位 | F192: 88 | G192: 97 | H192: 185 | I192: 61.67 | J192: 37.00 | K192: 79.80 | L192: 31.92 | M192: 68.92
A193: 191 | B193: 陈军爱 | C193: 1152960500126 | D193: 201032044贵阳市南明区沙冲路街道综治服务中心 | E193: 20103204401管理岗位 | F193: 93 | G193: 89 | H193: 182 | I193: 60.67 | J193: 36.40 | K193: 77.60 | L193: 31.04 | M193: 67.44
A194: 192 | B194: 吴梓萱 | C194: 1152960802207 | D194: 201032044贵阳市南明区沙冲路街道综治服务中心 | E194: 20103204401管理岗位 | F194: 73.5 | G194: 96 | H194: 169.5 | I194: 56.50 | J194: 33.90 | K194: 81.40 | L194: 32.56 | M194: 66.46
A195: 193 | B195: 朱林霞 | C195: 1152960600505 | D195: 201032045贵阳市南明区沙冲路街道应急工作服务中心 | E195: 20103204501管理岗位 | F195: 98 | G195: 112.5 | H195: 210.5 | I195: 70.17 | J195: 42.10 | K195: 80.00 | L195: 32.00 | M195: 74.1
A196: 194 | B196: 吴念 | C196: 1152960501119 | D196: 201032045贵阳市南明区沙冲路街道应急工作服务中心 | E196: 20103204501管理岗位 | F196: 77.5 | G196: 94 | H196: 171.5 | I196: =H196/3 -> 57.17 | J196: =I196*0.6 -> 34.30 | K196: 78.80 | L196: 31.52 | M196: 65.82
A197: 195 | B197: 段亚男 | C197: 1152960800714 | D197: 201032045贵阳市南明区沙冲路街道应急工作服务中心 | E197: 20103204501管理岗位 | F197: 85 | G197: 79.5 | H197: 164.5 | I197: 54.83 | J197: 32.90 | K197: 73.40 | L197: 29.36 | M197: 62.26
A198: 196 | B198: 鲁川东 | C198: 1152960101304 | D198: 201032046贵阳市南明区望城街道党务政务综合服务中心 | E198: 20103204601管理岗位 | F198: 106.5 | G198: 107.5 | H198: 214 | I198: 71.33 | J198: 42.80 | K198: 78.60 | L198: 31.44 | M198: 74.24
A199: 197 | B199: 陈雪 | C199: 1152960102608 | D199: 201032046贵阳市南明区望城街道党务政务综合服务中心 | E199: 20103204601管理岗位 | F199: 99.5 | G199: 103.5 | H199: 203 | I199: 67.67 | J199: 40.60 | K199: 77.80 | L199: =K199*0.4 -> 31.12 | M199: =J199+L199 -> 71.72
A200: 198 | B200: 何林洁 | C200: 1152960401927 | D200: 201032046贵阳市南明区望城街道党务政务综合服务中心 | E200: 20103204601管理岗位 | F200: 107 | G200: 94 | H200: 201 | I200: 67.00 | J200: 40.20 | K200: 81.40 | L200: 32.56 | M200: 72.76
... 25 more rows
